bitfinex/quotes_SOLUSD_20250106
["timestamp","ask_amount","ask_price","bid_price","bid_amount"]
[1736136555636,9.04704939,216.24,216.22,136.2]
[1736136562253,1.6433,216.29,216.22,136.2]
[1736136562438,9.04704939,216.26,216.23,0.69356748]
[1736136562837,9.04704939,216.26,216.22,136.2]
[1736136563351,9.04704939,216.25,216.22,136.2]
[1736136563553,9.04704939,216.24,216.22,136.2]
[1736136564238,9.04704939,216.25,216.22,136.2]
[1736136564851,9.04704939,216.28,216.23,0.69355432]
[1736136565157,9.04704939,216.29,216.23,0.69355432]
[1736136565465,9.04704939,216.28,216.23,0.69355432]
[1736136566032,9.04704939,216.27,216.23,136.89355432]
[1736136566235,9.04704939,216.27,216.23,136.2]
[1736136566747,9.04704939,216.27,216.24,0.69347047]
[1736136567053,9.04704939,216.27,216.24,136.89347047]
[1736136567247,9.04704939,216.27,216.24,136.2]
[1736136567546,9.04704939,216.27,216.25,0.69343373]
[1736136567968,0.67121155,216.34,216.26,161.976884]
[1736136568130,7.26628851,216.37,216.29,9.04704939]
[1736136568327,9.04704939,216.36,216.3,0.6932563]
[1736136569281,7.26628851,216.37,216.3,9.74030569]
[1736136569583,9.04704939,216.39,216.33,9.04704939]
[1736136569791,9.04704939,216.39,216.34,2.69311181]
[1736136570280,9.04704939,216.38,216.34,138.89311181]
[1736136570471,9.04704939,216.38,216.34,138.2]
[1736136570674,9.04704939,216.39,216.34,138.2]
[1736136571260,1.8567137,216.44,216.34,138.2]
[1736136571464,11.5502,216.45,216.34,138.2]
[1736136571653,9.04704939,216.39,216.35,0.69305906]
[1736136571852,9.04704939,216.38,216.35,2.69305906]
[1736136573185,9.04704939,216.39,216.35,2.69305906]
[1736136574593,9.04704939,216.39,216.35,138.89305906]
[1736136574805,9.04704939,216.39,216.35,138.2]
[1736136575611,12.22141155,216.45,216.35,138.2]
[1736136575772,12.21931155,216.49,216.37,145.24704939]
[1736136575972,9.04704939,216.44,216.38,136.89299478]
[1736136576195,0.67121155,216.49,216.39,169.02393339]
[1736136576394,9.04704939,216.45,216.4,0.69291092]
[1736136576671,9.04704939,216.43,216.4,136.2]
[1736136576873,9.04704939,216.42,216.37,137.7348]
[1736136577273,0.67121155,216.48,216.38,0.69302975]
[1736136577472,9.04704939,216.42,216.38,136.89302975]
[1736136577691,9.04704939,216.42,216.38,136.2]
[1736136580395,9.04704939,216.42,216.39,2.0]
[1736136580580,9.04704939,216.42,216.39,138.2]
[1736136582210,9.04704939,216.4,216.37,136.2]
[1736136582499,9.04704939,216.39,216.36,138.2]
[1736136583069,9.04704939,216.39,216.36,136.2]
[1736136583601,9.04704939,216.38,216.35,138.2]
[1736136583801,9.04704939,216.43,216.36,9.74021743]
[1736136585422,9.04704939,216.41,216.36,0.69316804]
[1736136585733,9.04704939,216.38,216.34,138.2]
[1736136586699,9.04704939,216.38,216.35,0.69314705]
[1736136586898,9.04704939,216.39,216.35,0.69314705]
[1736136589530,9.04704939,216.39,216.35,136.89314705]
[1736136589728,9.04704939,216.39,216.35,136.2]
[1736136590139,9.04704939,216.4,216.36,0.6931236]
[1736136593352,12.22171155,216.44,216.36,0.6931236]
[1736136593633,9.04704939,216.4,216.36,0.6931236]
[1736136593799,9.04704939,216.41,216.36,0.6931236]
[1736136594416,9.04704939,216.43,216.37,9.04704939]
[1736136594624,20.0,216.45,216.38,0.69302022]
[1736136594825,9.04704939,216.44,216.38,0.69302022]
[1736136595029,9.04704939,216.44,216.38,9.74006961]
[1736136595941,9.04704939,216.44,216.38,0.69302022]
[1736136596631,1.5231,216.49,216.38,9.74006961]
[1736136596815,9.04704939,216.45,216.38,9.74006961]
[1736136598634,9.04704939,216.45,216.38,145.94006961]
[1736136598929,9.04704939,216.45,216.38,145.24704939]
[1736136599868,2.19431155,216.49,216.39,23.776884]
[1736136600167,9.04704939,216.46,216.39,33.51689032]
[1736136601068,9.04704939,216.45,216.39,24.46984093]
[1736136601478,9.04704939,216.45,216.39,33.51689032]
[1736136602849,9.04704939,216.46,216.39,33.51689032]
[1736136603572,9.04704939,216.48,216.42,9.04704939]
[1736136603787,9.04704939,216.49,216.43,11.04704939]
[1736136603948,9.04704939,216.49,216.44,0.69282815]
[1736136605576,9.04704939,216.5,216.44,0.69282815]
[1736136606083,9.04704939,216.51,216.44,145.93987754]
[1736136606366,9.04704939,216.51,216.44,145.24704939]
[1736136606769,12.21531155,216.56,216.44,145.24704939]
[1736136606973,11.5441,216.56,216.46,9.04704939]
[1736136607155,9.04704939,216.54,216.47,9.73975388]
[1736136607357,1.5596,216.59,216.47,9.73975388]
[1736136607566,9.04704939,216.54,216.48,145.24704939]
[1736136607868,9.04704939,216.54,216.49,0.69263319]
[1736136610594,9.04704939,216.54,216.49,136.89263319]
[1736136610879,9.04704939,216.55,216.49,136.2]
[1736136611371,9.04704939,216.53,216.49,136.2]
[1736136611853,0.67121155,216.59,216.49,136.2]
[1736136612153,9.04704939,216.54,216.49,136.2]
[1736136612353,9.04704939,216.54,216.49,138.2]
[1736136612745,0.67121155,216.59,216.49,138.2]
[1736136612943,9.04704939,216.54,216.49,138.2]
[1736136613665,9.04704939,216.53,216.49,138.2]
[1736136614051,9.04704939,216.52,216.49,138.2]
[1736136614765,9.04704939,216.53,216.49,138.2]
[1736136615791,9.04704939,216.54,216.49,138.2]
[1736136616291,9.04704939,216.54,216.49,136.2]
[1736136616494,9.04704939,216.54,216.49,138.2]
[1736136618070,11.543,216.58,216.49,138.2]
[1736136618492,9.04704939,216.54,216.49,138.2]
[1736136618997,11.543,216.58,216.49,138.2]
[1736136619207,9.04704939,216.54,216.49,138.2]
[1736136619500,9.04704939,216.53,216.49,136.2]
[1736136619797,9.04704939,216.54,216.5,136.89265799]
[1736136619974,9.04704939,216.54,216.5,136.2]
[1736136620174,20.0,216.6,216.51,0.69260795]
[1736136620498,9.04704939,216.56,216.51,0.69260795]
[1736136620674,9.04704939,216.55,216.51,0.69260795]
[1736136621475,9.04704939,216.54,216.51,0.69260795]
[1736136622586,9.04704939,216.52,216.5,136.2]
[1736136622897,9.04704939,216.51,216.5,136.2]
[1736136623096,9.04704939,216.52,216.5,136.2]
[1736136623599,9.04704939,216.53,216.5,136.2]
[1736136624608,9.04704939,216.54,216.5,136.2]
[1736136625585,9.04704939,216.53,216.5,136.2]
[1736136625912,9.04704939,216.51,216.5,136.2]
[1736136626109,11.543,216.58,216.5,136.2]
[1736136626293,9.04704939,216.53,216.5,136.2]
[1736136628303,11.543,216.58,216.5,136.2]
[1736136628606,9.04704939,216.54,216.51,0.69266929]
[1736136628808,9.04704939,216.54,216.5,136.2]
[1736136630516,9.04704939,216.52,216.5,136.2]
[1736136632016,9.04704939,216.53,216.48,138.2]
[1736136632313,9.04704939,216.53,216.49,0.69267337]
[1736136633008,9.04704939,216.53,216.49,136.89267337]
[1736136633215,9.04704939,216.53,216.49,136.2]
[1736136633894,9.04704939,216.52,216.49,136.2]
[1736136634216,9.04704939,216.5,216.44,2.0]
[1736136634516,9.04704939,216.47,216.44,136.2]
[1736136635195,9.04704939,216.47,216.45,0.69283315]
[1736136635392,9.04704939,216.48,216.45,0.69283315]
[1736136635987,9.04704939,216.49,216.45,0.69283315]
[1736136636207,12.21541155,216.56,216.46,9.04704939]
[1736136636416,9.04704939,216.53,216.47,145.93976799]
[1736136636623,9.04704939,216.54,216.47,145.24704939]
[1736136637007,9.04704939,216.53,216.47,136.2]
[1736136637505,9.04704939,216.54,216.47,145.24704939]
[1736136637707,9.04704939,216.54,216.48,0.69264091]
[1736136638034,9.04704939,216.54,216.48,9.7396903]
[1736136638407,9.04704939,216.56,216.5,145.24704939]
[1736136638608,9.04704939,216.56,216.51,2.69256816]
[1736136639730,0.67121155,216.61,216.51,138.89256816]
[1736136639909,9.04704939,216.57,216.51,138.2]
[1736136641218,9.04704939,216.57,216.52,0.69253977]
[1736136641421,9.04704939,216.56,216.52,136.89253977]
[1736136641726,9.04704939,216.56,216.52,136.2]
[1736136641915,9.04704939,216.56,216.53,0.69254918]
[1736136642435,9.04704939,216.55,216.52,136.2]
[1736136644935,0.67121155,216.63,216.53,0.69261051]
[1736136645243,9.04704939,216.59,216.53,9.7396599]
[1736136647419,9.04704939,216.59,216.53,0.69261051]
[1736136648046,9.04704939,216.58,216.53,0.69261051]
[1736136648344,0.67121155,216.64,216.53,2.0]
[1736136648345,9.04704939,216.54,216.53,2.0]
[1736136648516,9.04704939,216.55,216.53,2.0]
[1736136649931,9.04704939,216.54,216.53,2.0]
[1736136651044,9.04704939,216.54,216.52,136.2]
[1736136651225,9.04704939,216.53,216.51,138.2]
[1736136651525,9.04704939,216.52,216.51,2.0]
[1736136652454,9.04704939,216.52,216.49,0.69267464]
[1736136652632,9.04704939,216.53,216.49,138.89267464]
[1736136652946,9.04704939,216.53,216.49,138.2]
[1736136653135,9.04704939,216.53,216.5,0.69263995]
[1736136653450,9.04704939,216.54,216.5,136.89263995]
[1736136653651,9.04704939,216.54,216.5,136.2]
[1736136653826,9.04704939,216.54,216.51,0.69262364]
[1736136656967,9.04704939,216.53,216.5,138.2]
[1736136657258,9.04704939,216.52,216.5,136.2]
[1736136657427,9.04704939,216.52,216.49,2.0]
[1736136657635,9.04704939,216.52,216.49,2.6927114]
[1736136659752,9.04704939,216.5,216.44,136.2]
[1736136660062,9.04704939,216.48,216.47,2.0]
[1736136660431,9.04704939,216.48,216.45,136.2]
[1736136661037,0.67121155,216.57,216.46,0.69281291]
[1736136661038,9.04704939,216.5,216.46,0.69281291]
[1736136661258,9.04704939,216.51,216.46,136.89281291]
[1736136661558,9.04704939,216.51,216.46,136.2]
[1736136661757,9.04704939,216.53,216.47,9.73981706]
[1736136661938,9.04704939,216.52,216.47,136.89276767]
[1736136662133,9.04704939,216.52,216.47,136.2]
[1736136662368,9.04704939,216.52,216.48,0.69271314]
[1736136662534,9.04704939,216.54,216.48,0.69271314]
[1736136664662,9.04704939,216.52,216.48,0.69271314]
[1736136666567,9.04704939,216.53,216.48,0.69271314]
[1736136666939,9.04704939,216.54,216.48,0.69271314]
[1736136667569,9.04704939,216.54,216.48,136.89271314]
[1736136667761,9.04704939,216.57,216.5,9.04704939]
[1736136667937,9.04704939,216.57,216.51,0.69258091]
[1736136668271,9.04704939,216.56,216.51,2.69258091]
[1736136669665,9.04704939,216.55,216.51,2.69258091]
[1736136670937,9.04704939,216.56,216.51,2.69258091]
[1736136671262,9.04704939,216.54,216.51,2.69258091]
[1736136671460,9.04704939,216.53,216.51,2.0]
[1736136672261,9.04704939,216.54,216.51,2.0]
[1736136673265,0.67121155,216.59,216.51,2.0]
[1736136673452,9.04704939,216.55,216.51,136.2]
[1736136673652,9.04704939,216.54,216.51,136.2]
[1736136674149,9.04704939,216.56,216.52,136.89264091]
[1736136674351,2.31521155,216.62,216.52,136.2]
[1736136674560,9.04704939,216.58,216.53,0.69252053]
[1736136675682,9.04704939,216.57,216.53,0.69252053]
[1736136677179,0.67121155,216.63,216.53,0.69252053]
[1736136677382,9.04704939,216.57,216.53,0.69252053]
[1736136678584,9.04704939,216.56,216.53,0.69252053]
[1736136679588,9.04704939,216.55,216.53,136.89252053]
[1736136679773,9.04704939,216.55,216.53,136.2]
[1736136680076,9.04704939,216.56,216.53,136.2]
[1736136681453,9.04704939,216.55,216.53,136.2]
[1736136682274,9.04704939,216.56,216.53,136.2]
[1736136684882,9.04704939,216.55,216.53,136.2]
[1736136685084,11.5409,216.62,216.51,138.2]
[1736136685383,9.04704939,216.56,216.52,136.89254269]
[1736136685579,9.04704939,216.56,216.52,136.2]
[1736136685785,9.04704939,216.56,216.53,0.69255832]
[1736136685983,11.5409,216.62,216.53,136.89255832]
[1736136686166,9.04704939,216.57,216.53,136.2]
[1736136686375,9.04704939,216.57,216.54,0.69252187]
[1736136687984,11.5409,216.62,216.54,0.69252187]
[1736136688296,9.04704939,216.57,216.54,0.69252187]
[1736136688468,11.5409,216.62,216.54,0.69252187]
[1736136688678,9.04704939,216.59,216.54,0.69252187]
[1736136688874,9.04704939,216.6,216.54,0.69252187]
[1736136689075,20.0,216.63,216.54,136.89252187]
[1736136689300,9.04704939,216.6,216.54,136.2]
[1736136689504,9.04704939,216.6,216.55,0.69246078]
[1736136689971,9.04704939,216.59,216.55,0.69246078]
[1736136691498,9.04704939,216.6,216.55,0.69246078]
[1736136692706,9.04704939,216.59,216.55,0.69246078]
[1736136694404,9.04704939,216.59,216.55,136.89246078]
[1736136694584,9.04704939,216.59,216.55,136.2]
[1736136695898,9.04704939,216.56,216.55,136.2]
[1736136696203,9.04704939,216.56,216.51,2.0]
[1736136696394,9.04704939,216.56,216.52,0.69255257]
[1736136697601,9.04704939,216.57,216.52,136.89255257]
[1736136697782,9.04704939,216.57,216.52,136.2]
[1736136697979,9.04704939,216.57,216.53,0.69249478]
[1736136699406,9.04704939,216.58,216.53,136.89249478]
[1736136699614,9.04704939,216.58,216.53,136.2]
[1736136699924,9.04704939,216.58,216.54,0.69248833]
[1736136700619,9.04704939,216.57,216.54,136.89248833]
[1736136700825,9.04704939,216.57,216.54,136.2]
[1736136701891,9.04704939,216.55,216.52,138.2]
[1736136702095,9.04704939,216.54,216.52,2.0]
[1736136702525,9.04704939,216.53,216.51,0.69259492]
[1736136702824,9.04704939,216.52,216.48,2.0]
[1736136703026,9.04704939,216.52,216.49,0.69266942]
[1736136705927,9.04704939,216.51,216.49,136.89266942]
[1736136706094,9.04704939,216.51,216.49,136.2]
[1736136706528,9.04704939,216.52,216.49,136.2]
[1736136707523,9.04704939,216.53,216.49,136.2]
[1736136708029,9.04704939,216.52,216.49,136.2]
[1736136710831,9.04704939,216.51,216.47,138.2]
[1736136711206,9.04704939,216.5,216.47,138.2]
[1736136711607,9.04704939,216.51,216.47,138.2]
[1736136711833,9.04704939,216.51,216.48,0.69273052]
[1736136712131,9.04704939,216.52,216.48,0.69273052]
[1736136713113,9.04704939,216.53,216.48,136.89273052]
[1736136713317,9.04704939,216.52,216.48,136.2]
[1736136713735,9.04704939,216.51,216.48,136.2]
[1736136715342,9.04704939,216.52,216.48,136.2]
[1736136716916,9.04704939,216.49,216.44,137.826]
[1736136717117,9.04704939,216.48,216.44,137.826]
[1736136717535,9.04704939,216.49,216.44,137.826]
[1736136717923,9.04704939,216.48,216.44,136.2]
[1736136719225,9.04704939,216.49,216.45,0.69283837]
[1736136719836,0.67121155,216.55,216.45,0.69283837]
[1736136720043,9.04704939,216.5,216.45,0.69283837]
[1736136720357,9.04704939,216.5,216.44,136.89280593]
[1736136720541,9.04704939,216.5,216.44,136.2]
[1736136721559,9.04704939,216.49,216.44,136.2]
[1736136723053,9.04704939,216.49,216.45,0.69283502]
[1736136723257,9.04704939,216.46,216.36,136.2]
[1736136723418,9.04704939,216.43,216.37,145.94004428]
[1736136723623,9.04704939,216.44,216.37,145.24704939]
[1736136723828,9.04704939,216.44,216.38,0.69299195]
[1736136724752,9.04704939,216.43,216.38,136.89299195]
[1736136724917,9.04704939,216.43,216.38,136.2]
[1736136725320,9.04704939,216.42,216.38,136.2]
[1736136726155,9.04704939,216.4,216.38,136.2]
[1736136727456,9.04704939,216.4,216.34,145.24704939]
[1736136728348,9.04704939,216.4,216.35,0.69312827]
[1736136729133,10.3769728,216.47,216.37,9.04704939]
[1736136729337,9.04704939,216.43,216.38,0.69303206]
[1736136730031,9.04704939,216.42,216.38,0.69303206]
[1736136731650,9.04704939,216.43,216.38,0.69303206]
[1736136733549,9.04704939,216.43,216.38,136.89303206]
[1736136733756,9.04704939,216.43,216.38,136.2]
[1736136734547,9.04704939,216.42,216.38,136.2]
[1736136735865,10.3769728,216.47,216.38,136.2]
[1736136736065,9.04704939,216.42,216.38,136.2]
[1736136736370,9.04704939,216.41,216.38,136.2]
[1736136737156,9.04704939,216.39,216.3,136.2]
[1736136737352,9.04704939,216.34,216.3,136.2]
[1736136738249,9.04704939,216.33,216.3,136.2]
[1736136740468,9.04704939,216.32,216.27,159.976884]
[1736136740654,9.04704939,216.32,216.27,136.2]
[1736136747076,9.04704939,216.28,216.27,136.2]
[1736136748964,9.04704939,216.28,216.21,147.24704939]
[1736136749162,9.04704939,216.27,216.21,138.2]
[1736136750289,9.04704939,216.27,216.21,136.2]
[1736136751160,9.04704939,216.26,216.21,136.2]
[1736136751563,9.04704939,216.23,216.18,137.7067]
[1736136755091,9.04704939,216.23,216.18,136.2]
[1736136758302,9.04704939,216.22,216.18,136.2]
[1736136759401,9.04704939,216.23,216.18,136.2]
[1736136759605,9.04704939,216.24,216.18,136.2]
[1736136759778,9.04704939,216.25,216.19,0.69366994]
[1736136759979,9.04704939,216.26,216.19,145.94071933]
[1736136760199,9.04704939,216.26,216.19,145.24704939]
[1736136760693,9.04704939,216.25,216.19,145.24704939]
[1736136761611,2.50003042,216.31,216.19,145.24704939]
[1736136761904,9.04704939,216.25,216.19,145.24704939]
[1736136764309,9.04704939,216.25,216.19,136.2]
[1736136765917,9.04704939,216.24,216.19,136.2]
[1736136766519,9.04704939,216.23,216.19,136.2]
[1736136768346,9.04704939,216.24,216.19,136.2]
[1736136773145,9.04704939,216.25,216.19,136.2]
[1736136774331,9.04704939,216.25,216.2,0.69362944]
[1736136776533,9.04704939,216.25,216.19,136.2]
[1736136776736,9.04704939,216.24,216.19,136.2]
[1736136777035,9.04704939,216.23,216.19,136.2]
[1736136777240,9.04704939,216.21,216.19,136.2]
[1736136777530,9.04704939,216.24,216.18,145.24704939]
[1736136778230,9.04704939,216.28,216.22,9.04704939]
[1736136778530,0.67121155,216.35,216.24,9.04704939]
[1736136778700,9.04704939,216.31,216.24,9.04704939]
[1736136778905,0.67121155,216.36,216.26,145.24704939]
[1736136779103,9.04704939,216.33,216.27,145.94043388]
[1736136779328,9.04704939,216.33,216.28,0.69335253]
[1736136779962,7.9796,216.37,216.28,0.69335253]
[1736136780163,0.67121155,216.39,216.28,0.69335253]
[1736136780164,2.27621155,216.42,216.33,9.04704939]
[1736136780380,9.04704939,216.42,216.36,9.04704939]
[1736136780671,9.04704939,216.42,216.37,0.69311776]
[1736136782063,9.04704939,216.41,216.37,0.69311776]
[1736136782262,9.04704939,216.41,216.35,9.74014539]
[1736136783135,9.04704939,216.41,216.35,9.04704939]
[1736136783342,9.04704939,216.41,216.34,9.04704939]
[1736136783549,9.04704939,216.41,216.35,0.69309554]
[1736136785457,9.04704939,216.42,216.36,145.24704939]
[1736136785668,2.31451155,216.47,216.36,145.24704939]
[1736136785669,9.04704939,216.41,216.36,136.2]
[1736136786638,9.04704939,216.4,216.36,136.2]
[1736136787850,9.04704939,216.37,216.33,138.2]
[1736136788161,9.04704939,216.34,216.3,138.2]
[1736136788566,0.67121155,216.44,216.31,0.69327187]
[1736136788567,9.04704939,216.35,216.31,0.69327187]
[1736136789653,9.04704939,216.36,216.31,0.69327187]
[1736136790555,9.04704939,216.35,216.31,0.69327187]
[1736136792274,9.04704939,216.36,216.31,0.69327187]
[1736136792972,0.67121155,216.44,216.31,0.69327187]
[1736136793171,1.6433,216.47,216.35,9.04704939]
[1736136793172,9.04704939,216.41,216.35,9.04704939]
[1736136793480,9.04704939,216.41,216.36,0.69307953]
[1736136793865,9.04704939,216.4,216.36,0.69307953]
[1736136794559,9.04704939,216.4,216.34,144.94012892]
[1736136794771,9.04704939,216.41,216.35,0.36841128]
[1736136795150,2.31451155,216.47,216.35,0.36841128]
[1736136795449,9.04704939,216.42,216.35,145.61546067]
[1736136795645,9.04704939,216.4,216.35,136.2]
[1736136796355,9.04704939,216.39,216.35,136.2]
[1736136796573,9.04704939,216.4,216.35,136.2]
[1736136797376,9.04704939,216.4,216.36,0.36847089]
[1736136797871,2.31451155,216.47,216.37,9.04704939]
[1736136798083,9.04704939,216.44,216.38,9.41534397]
[1736136798573,15.337449,216.51,216.39,9.04704939]
[1736136798780,9.04704939,216.46,216.4,145.61501776]
[1736136798953,9.04704939,216.46,216.4,145.24704939]
[1736136799871,9.04704939,216.47,216.4,145.24704939]
[1736136800073,9.04704939,216.47,216.41,0.36790308]
[1736136800279,9.04704939,216.47,216.41,9.41495247]
[1736136800457,2.52619708,216.53,216.42,9.04704939]
[1736136800458,9.04704939,216.49,216.42,9.04704939]
[1736136800655,9.04704939,216.48,216.43,0.36780715]
[1736136800853,9.04704939,216.46,216.43,0.36780715]
[1736136801658,9.04704939,216.46,216.41,0.36791071]
[1736136804684,9.04704939,216.47,216.41,145.6149601]
[1736136804897,9.04704939,216.47,216.41,145.24704939]
[1736136805184,9.04704939,216.49,216.42,145.24704939]
[1736136805364,9.04704939,216.49,216.43,11.43470133]
[1736136806284,9.04704939,216.48,216.43,138.58765194]
[1736136806486,9.04704939,216.48,216.43,138.22]
[1736136806663,9.04704939,216.49,216.44,136.56776872]
[1736136806989,9.04704939,216.5,216.44,136.2]
[1736136807165,9.04704939,216.49,216.45,136.56760892]
[1736136807367,9.04704939,216.49,216.45,136.2]
[1736136808064,9.04704939,216.47,216.45,136.2]
[1736136811287,9.04704939,216.47,216.42,2.02]
[1736136811288,9.04704939,216.46,216.42,138.22]
[1736136811477,9.04704939,216.45,216.42,138.22]
[1736136811672,9.04704939,216.46,216.42,138.22]
[1736136811871,0.86609432,216.54,216.42,138.22]
[1736136811872,9.04704939,216.47,216.43,0.36786988]
[1736136812273,9.04704939,216.49,216.43,136.56786988]
[1736136812466,9.04704939,216.49,216.43,136.2]
[1736136812668,9.04704939,216.49,216.44,0.36772274]
[1736136812888,0.86609432,216.54,216.44,0.36772274]
[1736136813089,9.04704939,216.5,216.44,9.41477213]
[1736136813593,20.0,216.56,216.45,32.82393339]
[1736136813887,9.04704939,216.52,216.46,0.36746354]
[1736136814071,9.04704939,216.5,216.46,0.36746354]
[1736136814273,9.04704939,216.5,216.44,0.36756838]
[1736136814470,9.04704939,216.49,216.44,136.56756838]
[1736136814670,9.04704939,216.49,216.44,136.2]
[1736136814992,9.04704939,216.5,216.44,136.2]
[1736136815792,20.0,216.56,216.45,136.56761838]
[1736136815961,9.04704939,216.5,216.45,136.2]
[1736136816160,9.04704939,216.5,216.46,0.36751453]
[1736136816896,9.04704939,216.49,216.45,136.2]
[1736136817894,9.04704939,216.49,216.37,6.6608]
[1736136817895,9.04704939,216.46,216.37,145.24704939]
[1736136818103,9.04704939,216.43,216.38,136.56810497]
[1736136818282,9.04704939,216.44,216.38,136.2]
[1736136818595,9.04704939,216.44,216.39,0.36803848]
[1736136819505,9.04704939,216.45,216.39,169.39197187]
[1736136819703,9.04704939,216.45,216.39,169.02393339]
[1736136819868,0.86613094,216.53,216.41,9.04704939]
[1736136820074,9.04704939,216.49,216.42,11.43483646]
[1736136820582,9.04704939,216.49,216.42,2.38778707]
[1736136820793,0.86601521,216.55,216.43,169.02393339]
[1736136821096,9.04704939,216.5,216.44,145.61461463]
[1736136821305,9.04704939,216.5,216.44,145.24704939]
[1736136821494,9.04704939,216.5,216.44,136.2]
[1736136822308,9.04704939,216.48,216.44,136.2]
[1736136822510,9.04704939,216.48,216.45,0.36778993]
[1736136822800,9.04704939,216.49,216.45,0.36778993]
[1736136826608,9.04704939,216.48,216.45,0.36778993]
[1736136828599,9.04704939,216.47,216.43,138.22]
[1736136830027,9.04704939,216.48,216.44,0.36790046]
[1736136830490,9.04704939,216.49,216.44,0.36790046]
[1736136831007,12.41083693,216.55,216.44,0.36790046]
[1736136831214,9.04704939,216.5,216.44,0.36790046]
[1736136833412,9.04704939,216.49,216.44,0.36790046]
[1736136833613,12.41083693,216.55,216.44,0.36790046]
[1736136833806,9.04704939,216.53,216.46,9.04704939]
[1736136834128,9.04704939,216.52,216.45,9.04704939]
[1736136834431,9.04704939,216.52,216.44,32.82393339]
[1736136838195,9.04704939,216.52,216.44,169.02393339]
[1736136839522,9.04704939,216.51,216.44,159.976884]
[1736136839822,9.04704939,216.51,216.44,169.02393339]
[1736136841998,9.04704939,216.52,216.45,9.04704939]
[1736136843725,9.04704939,216.51,216.44,169.02393339]
[1736136845735,9.04704939,216.51,216.44,136.2]
[1736136845908,9.04704939,216.49,216.45,2.02]
[1736136846102,9.04704939,216.48,216.45,138.22]
[1736136846429,9.04704939,216.47,216.45,2.02]
[1736136847026,9.04704939,216.48,216.45,2.02]
[1736136847805,9.04704939,216.49,216.45,2.02]
[1736136848833,13.92118562,216.56,216.45,2.02]
[1736136849017,9.04704939,216.52,216.45,11.06704939]
[1736136850728,13.92118562,216.56,216.45,11.06704939]
[1736136851028,9.04704939,216.52,216.45,11.06704939]
[1736136851230,1.5111,216.56,216.46,32.82393339]
[1736136851531,9.04704939,216.53,216.46,32.82393339]
[1736136852030,9.04704939,216.52,216.46,23.776884]
[1736136853135,9.04704939,216.52,216.46,159.976884]
[1736136854526,1.8792868,216.58,216.48,159.976884]
[1736136854709,9.04704939,216.54,216.48,159.976884]
[1736136855538,9.04704939,216.54,216.48,136.2]
[1736136856039,9.04704939,216.53,216.48,136.2]
[1736136856834,9.04704939,216.52,216.48,136.2]
[1736136857538,9.04704939,216.53,216.48,136.2]
[1736136859139,9.04704939,216.53,216.46,145.24704939]
[1736136861441,2.74702687,216.59,216.47,1.6348]
[1736136861626,9.04704939,216.53,216.47,10.68184939]
[1736136862148,9.04704939,216.53,216.47,1.6348]
[1736136862518,38.93522443,216.59,216.47,1.6348]
[1736136862724,9.04704939,216.53,216.47,10.68184939]
[1736136864751,9.04704939,216.54,216.47,10.68184939]
[1736136865146,9.04704939,216.54,216.47,146.88184939]
[1736136865520,9.04704939,216.54,216.48,23.776884]
[1736136865727,9.04704939,216.55,216.48,32.82393339]
[1736136866040,9.04704939,216.56,216.49,9.04704939]
[1736136866346,9.04704939,216.56,216.5,145.24704939]
[1736136870156,9.04704939,216.55,216.5,136.2]
[1736136871137,9.04704939,216.56,216.5,145.24704939]
[1736136871451,9.04704939,216.57,216.51,145.24704939]
[1736136871657,9.04704939,216.57,216.52,2.02]
[1736136874161,9.04704939,216.56,216.52,2.02]
[1736136874930,9.04704939,216.56,216.52,7.02]
[1736136875854,0.86569807,216.63,216.52,143.22]
[1736136876153,9.04704939,216.58,216.52,143.22]
[1736136876357,9.04704939,216.58,216.52,152.26704939]
[1736136877259,9.04704939,216.58,216.52,143.22]
[1736136877556,9.04704939,216.57,216.52,143.22]
[1736136879854,9.04704939,216.57,216.52,148.22]
[1736136880273,9.04704939,216.59,216.53,159.976884]
[1736136880444,9.04704939,216.59,216.53,169.02393339]
[1736136881536,9.04704939,216.57,216.52,146.2]
[1736136881842,9.04704939,216.53,216.52,12.02]
[1736136883467,9.04704939,216.54,216.52,12.02]
[1736136884146,9.04704939,216.57,216.52,12.02]
[1736136884555,9.04704939,216.56,216.52,12.02]
[1736136884758,9.04704939,216.55,216.52,12.02]
[1736136891082,9.04704939,216.55,216.52,10.0]
[1736136891293,9.04704939,216.54,216.52,10.0]
[1736136891498,9.04704939,216.53,216.52,10.0]
[1736136893183,0.86598645,216.56,216.52,10.0]
[1736136893488,9.04704939,216.53,216.52,10.0]